bitfinex-derivatives/quotes_SOLF0:USTF0_20250829
["timestamp","ask_amount","ask_price","bid_price","bid_amount"]
[1756510149110,7.74,204.54,204.43,10.10910419]
[1756510149309,2.49058648,204.53,204.43,10.10910419]
[1756510149508,7.74,204.54,204.43,2.82910419]
[1756510149712,7.74,204.54,204.46,2.82910419]
[1756510149910,7.74,204.54,204.47,7.28]
[1756510150714,7.74,204.54,204.49,2.82910419]
[1756510151512,7.74,204.54,204.5,7.28]
[1756510151720,7.74,204.59,204.5,7.28]
[1756510153010,7.74,204.59,204.52,2.82910419]
[1756510153219,7.74,204.59,204.53,7.28]
[1756510155620,2.82910419,204.64,204.53,7.28]
[1756510155621,7.74,204.63,204.53,7.28]
[1756510156020,7.74,204.63,204.52,2.82910419]
[1756510156021,7.74,204.63,204.55,2.82910419]
[1756510156223,7.74,204.63,204.55,10.10910419]
[1756510156622,7.74,204.63,204.55,7.28]
[1756510159418,7.74,204.63,204.4,2.82910419]
[1756510159623,2.82910419,204.62,204.5,2.82910419]
[1756510159822,2.82910419,204.62,204.51,7.28]
[1756510160023,7.74,204.61,204.51,7.28]
[1756510161024,7.74,204.61,204.53,2.82910419]
[1756510161321,7.74,204.61,204.54,7.28]
[1756510162914,2.82910419,204.62,204.5,10.10910419]
[1756510163624,7.74,204.61,204.5,10.10910419]
[1756510163824,2.82910419,204.62,204.5,10.10910419]
[1756510164026,7.74,204.61,204.5,10.10910419]
[1756510164226,2.82910419,204.62,204.5,10.10910419]
[1756510165623,7.74,204.61,204.5,10.10910419]
[1756510165828,2.82910419,204.62,204.5,10.10910419]
[1756510166126,7.74,204.61,204.5,10.10910419]
[1756510166623,2.82910419,204.62,204.5,10.10910419]
[1756510167122,7.74,204.61,204.5,10.10910419]
[1756510167328,2.82910419,204.62,204.5,10.10910419]
[1756510167529,7.74,204.61,204.5,10.10910419]
[1756510168420,2.82910419,204.62,204.5,10.10910419]
[1756510168621,7.74,204.61,204.5,10.10910419]
[1756510168823,7.74,204.61,204.51,7.28]
[1756510171135,7.74,204.57,204.46,2.82910419]
[1756510171331,7.74,204.57,204.47,7.28]
[1756510171732,7.74,204.57,204.49,2.82910419]
[1756510171932,7.74,204.57,204.5,7.28]
[1756510174932,0.85081414,204.65,204.5,7.28]
[1756510175138,7.74,204.62,204.53,7.28]
[1756510175338,7.74,204.62,204.55,2.82910419]
[1756510175637,7.74,204.62,204.56,7.28]
[1756510176235,339.42910419,204.66,204.56,7.28]
[1756510176938,10.56910419,204.66,204.56,7.28]
[1756510177837,7.74,204.66,204.59,7.93]
[1756510180444,7.39,204.72,204.62,7.93]
[1756510183953,7.39,204.72,204.64,2.82910419]
[1756510186953,7.39,204.72,204.62,7.93]
[1756510187256,7.39,204.72,204.63,2.82910419]
[1756510187855,7.39,204.69,204.57,2.82910419]
[1756510188158,7.39,204.69,204.58,7.93]
[1756510188446,7.39,204.69,204.6,2.82910419]
[1756510191156,2.48093211,204.68,204.6,2.82910419]
[1756510191354,7.39,204.69,204.6,2.82910419]
[1756510191557,7.39,204.67,204.6,2.82910419]
[1756510196161,7.39,204.67,204.6,10.75910419]
[1756510196458,7.39,204.71,204.61,7.93]
[1756510196658,7.39,204.69,204.61,7.93]
[1756510197359,7.39,204.69,204.63,2.82910419]
[1756510198058,7.39,204.69,204.63,10.75910419]
[1756510203862,7.39,204.74,204.66,2.82910419]
[1756510204063,7.39,204.74,204.66,10.75910419]
[1756510205561,331.28910419,204.77,204.66,10.75910419]
[1756510205757,7.39,204.75,204.66,10.75910419]
[1756510205960,7.39,204.76,204.67,7.93]
[1756510206155,7.39,204.76,204.7,7.93]
[1756510206360,7.39,204.79,204.73,7.93]
[1756510208758,7.39,204.79,204.72,2.82910419]
[1756510208759,7.25,204.85,204.75,10.66910419]
[1756510208964,0.84997252,204.86,204.75,10.66910419]
[1756510209264,7.25,204.85,204.75,10.66910419]
[1756510209764,0.84997252,204.86,204.75,10.66910419]
[1756510209965,7.25,204.85,204.75,10.66910419]
[1756510210555,7.25,204.85,204.75,7.84]
[1756510210762,7.25,204.85,204.77,2.82910419]
[1756510211368,7.25,204.85,204.78,7.84]
[1756510212467,7.25,204.85,204.79,2.82910419]
[1756510212968,7.25,204.85,204.73,2.82910419]
[1756510213170,7.25,204.82,204.71,7.84]
[1756510213364,2.82910419,204.83,204.71,10.66910419]
[1756510213566,2.82910419,204.8,204.71,7.84]
[1756510213766,7.25,204.79,204.71,7.84]
[1756510215064,7.25,204.79,204.69,2.82910419]
[1756510215261,7.25,204.79,204.67,7.84]
[1756510215669,2.82910419,204.77,204.67,7.84]
[1756510216069,7.25,204.76,204.67,7.84]
[1756510220172,7.25,204.83,204.72,7.84]
[1756510220469,7.25,204.83,204.75,7.84]
[1756510222673,7.25,204.83,204.75,10.66910419]
[1756510227276,7.25,204.83,204.75,7.84]
[1756510231181,7.25,204.83,204.77,7.84]
[1756510231979,7.25,204.83,204.73,2.82910419]
[1756510232177,7.25,204.83,204.74,7.84]
[1756510233976,10.07910419,204.88,204.77,7.84]
[1756510234387,7.25,204.86,204.77,7.84]
[1756510239687,7.9,204.84,204.77,7.84]
[1756510240089,7.9,204.84,204.74,7.77]
[1756510241086,2.48455187,204.83,204.74,7.77]
[1756510241285,7.9,204.82,204.74,7.77]
[1756510242884,124.74910419,204.85,204.72,2.82910419]
[1756510242885,7.9,204.86,204.76,7.77]
[1756510243085,2.48633646,204.85,204.76,7.77]
[1756510243288,7.9,204.86,204.79,7.77]
[1756510246692,329.1297961,204.89,204.79,7.77]
[1756510246888,10.3879214,204.88,204.79,7.77]
[1756510247086,2.4879214,204.87,204.79,7.77]
[1756510247390,10.3879214,204.86,204.79,7.77]
[1756510247590,7.9,204.86,204.79,7.77]
[1756510248190,2.4896699,204.85,204.79,7.77]
[1756510248391,7.9,204.86,204.79,7.77]
[1756510248589,2.4896699,204.85,204.79,7.77]
[1756510248789,7.9,204.86,204.79,7.77]
[1756510248987,2.4896699,204.85,204.79,7.77]
[1756510249190,7.9,204.86,204.79,7.77]
[1756510249386,2.49023173,204.85,204.79,7.77]
[1756510249583,7.9,204.86,204.79,7.77]
[1756510249787,2.49023191,204.85,204.79,7.77]
[1756510249992,7.9,204.86,204.79,7.77]
[1756510250291,7.9,204.84,204.74,10.59910419]
[1756510250490,2.49023191,204.83,204.74,10.59910419]
[1756510251894,10.39023191,204.82,204.74,7.77]
[1756510252095,2.49023191,204.81,204.74,7.77]
[1756510252294,7.9,204.82,204.74,7.77]
[1756510252495,2.49175342,204.81,204.74,7.77]
[1756510252698,2.49175342,204.8,204.74,7.77]
[1756510252897,7.9,204.82,204.74,7.77]
[1756510252898,7.9,204.82,204.74,10.59910419]
[1756510253094,2.49171195,204.81,204.74,10.59910419]
[1756510253296,7.9,204.82,204.74,10.59910419]
[1756510253497,7.9,204.87,204.78,2.82910419]
[1756510253694,2.49124562,204.86,204.79,10.59910419]
[1756510253898,7.9,204.87,204.8,7.77]
[1756510254095,2.49116161,204.86,204.8,7.77]
[1756510254297,0.03700106,204.85,204.8,7.77]
[1756510254599,0.03700106,204.85,204.8,2.82910419]
[1756510255197,0.03700106,204.85,204.81,7.77]
[1756510255798,0.03700106,204.85,204.8,2.82910419]
[1756510256399,0.03700106,204.85,204.81,7.77]
[1756510257002,0.03700106,204.85,204.82,7.77]
[1756510257200,0.03700106,204.85,204.81,2.82910419]
[1756510259303,0.03700106,204.85,204.82,7.77]
[1756510260906,0.03700106,204.85,204.78,2.82910419]
[1756510261405,0.03700106,204.85,204.78,10.59910419]
[1756510263410,0.03700106,204.85,204.78,2.82910419]
[1756510263612,0.03700106,204.85,204.79,7.77]
[1756510272614,0.03700106,204.85,204.81,2.82910419]
[1756510272818,0.03700106,204.85,204.82,7.17]
[1756510273018,0.03700106,204.85,204.81,2.82910419]
[1756510273418,0.03700106,204.85,204.82,7.17]
[1756510273823,0.03700106,204.85,204.81,2.82910419]
[1756510274022,0.03700106,204.85,204.82,7.17]
[1756510274418,0.03700106,204.85,204.81,2.82910419]
[1756510274622,0.03700106,204.85,204.82,7.17]
[1756510274920,0.03700106,204.85,204.81,2.82910419]
[1756510275522,0.03700106,204.85,204.82,7.17]
[1756510275824,0.03700106,204.85,204.81,2.82910419]
[1756510276529,0.03700106,204.85,204.82,7.17]
[1756510276723,0.03700106,204.85,204.81,2.82910419]
[1756510277226,0.03700106,204.85,204.82,7.17]
[1756510277416,0.03700106,204.85,204.81,2.82910419]
[1756510278025,0.03700106,204.85,204.82,7.17]
[1756510280317,0.03700106,204.85,204.81,2.82910419]
[1756510280721,0.03700106,204.85,204.79,5.42864114]
[1756510280919,0.03700106,204.85,204.8,2.82910419]
[1756510281326,7.3,204.87,204.81,7.17]
[1756510289933,7.3,204.9,204.81,7.17]
[1756510290333,0.84970273,204.92,204.83,2.82910419]
[1756510290533,0.84970273,204.92,204.84,7.17]
[1756510290732,8.14970273,204.92,204.84,7.17]
[1756510291335,7.3,204.92,204.84,7.17]
[1756510302738,3.49959292,204.91,204.84,7.17]
[1756510302941,7.69,204.9,204.84,7.17]
[1756510303444,2.82910419,204.93,204.84,7.17]
[1756510303445,10.51910419,204.93,204.84,7.17]
[1756510303646,3.4994923,204.92,204.84,7.17]
[1756510303841,10.51910419,204.93,204.84,7.17]
[1756510304047,3.4994923,204.92,204.84,7.17]
[1756510304346,10.51910419,204.93,204.84,7.17]
[1756510305448,7.69,204.93,204.84,7.17]
[1756510309753,7.69,204.93,204.86,7.43]
[1756510317753,0.03367441,204.92,204.86,7.43]
[1756510321357,7.69,204.91,204.88,7.43]
[1756510325763,7.69,204.91,204.88,9.24076427]
[1756510332864,7.69,204.91,204.88,9.01076427]
[1756510333969,0.03367441,204.92,204.88,9.01076427]
[1756510334167,7.38,204.91,204.88,9.01076427]
[1756510334867,7.38,204.91,204.89,7.2]
[1756510336871,0.03367441,204.92,204.89,7.2]
[1756510337270,7.38,204.91,204.89,7.2]
[1756510337470,7.41367441,204.92,204.88,1.81076427]
[1756510337664,7.41367441,204.92,204.89,7.2]
[1756510339871,7.38,204.91,204.89,7.2]
[1756510347479,0.03367441,204.92,204.91,7.2]
[1756510348571,0.03367441,204.92,204.91,9.01076427]
[1756510369788,0.03367441,204.92,204.91,7.2]
[1756510370091,0.03367441,204.92,204.91,9.01076427]
[1756510373688,0.03367441,204.92,204.91,7.2]
[1756510373892,0.03367441,204.92,204.91,9.01076427]
[1756510379794,0.03367441,204.92,204.91,7.2]
[1756510389994,7.57,205.02,204.91,7.2]
[1756510390196,11.09903547,205.01,204.96,1.81076427]
[1756510390400,3.52700229,205.0,204.99,7.83]
[1756510392804,7.57,205.03,204.97,7.86453665]
[1756510393004,3.5252984,205.02,204.97,7.86453665]
[1756510393199,3.5252984,205.01,204.97,7.86453665]
[1756510393503,3.5252984,205.0,204.97,7.86453665]
[1756510393702,7.57,204.99,204.97,7.86453665]
[1756510394300,12.90552889,204.98,204.97,0.03453665]
[1756510394500,9.38076427,204.98,204.97,0.03453665]
[1756510394712,13.3863155,204.98,204.97,0.03453665]
[1756510395010,13.3863155,204.98,204.84,7.83]
[1756510395208,1.81076427,204.91,204.85,7.83]
[1756510395404,1.81076427,204.91,204.74,10.72]
[1756510395405,7.57,204.97,204.9,1.81076427]
[1756510395706,11.09434011,204.96,204.93,7.83]
[1756510395912,3.52434011,204.95,204.93,7.83]
[1756510396106,11.09434011,204.95,204.93,7.83]
[1756510396405,16.49748834,204.94,204.86,1.81076427]
[1756510396710,9.38076427,204.94,204.87,7.83]
[1756510396911,9.38076427,204.94,204.88,1.81076427]
[1756510398104,9.38076427,204.94,204.88,9.64076427]
[1756510399505,7.57,204.94,204.88,9.64076427]
[1756510399709,1.81076427,204.93,204.89,7.83]
[1756510399908,1.81076427,204.93,204.87,7.83]
[1756510401108,1.81076427,204.89,204.87,7.83]
[1756510401310,9.38076427,204.89,204.87,7.83]
[1756510401613,1.81076427,204.89,204.87,7.83]
[1756510401912,7.57,204.9,204.87,7.83]
[1756510402315,1.81076427,204.91,204.86,1.81076427]
[1756510402513,7.57,204.93,204.87,7.83]
[1756510402715,1.81076427,204.92,204.86,9.64076427]
[1756510404318,7.57,205.01,204.91,7.83]
[1756510404517,7.57,205.01,204.95,1.81076427]
[1756510404718,9.38076427,205.01,204.96,7.83]
[1756510405113,9.38076427,205.01,204.95,9.64076427]
[1756510405418,7.57,205.01,204.95,7.83]
[1756510415522,2.82697098,204.99,204.88,7.83]
[1756510415726,7.57,204.98,204.88,7.83]
[1756510416726,2.82697098,204.96,204.88,7.83]
[1756510416926,7.29,204.95,204.88,7.83]
[1756510417334,7.29,204.92,204.85,7.45]
[1756510418031,7.29,204.89,204.85,7.45]
[1756510419138,7.29,204.89,204.81,2.82697098]
[1756510419337,7.29,204.89,204.82,7.45]
[1756510422140,10.11697098,204.89,204.82,7.45]
[1756510424740,7.29,204.98,204.82,7.45]
[1756510424943,7.29,204.97,204.85,7.45]
[1756510425142,2.82697098,204.95,204.85,7.45]
[1756510425342,10.11697098,204.95,204.85,7.45]
[1756510431842,2.82697098,204.89,204.8,7.45]
[1756510432042,7.29,204.88,204.8,7.45]
[1756510433849,2.82697098,204.86,204.8,7.45]
[1756510434048,7.29,204.85,204.8,7.45]
[1756510434349,2.82697098,204.86,204.8,7.45]
[1756510434843,10.11697098,204.86,204.8,7.45]
[1756510435739,7.29,204.86,204.8,7.45]
[1756510436639,7.29,204.84,204.74,7.45]
[1756510437751,2.82697098,204.82,204.74,7.45]
[1756510437945,7.29,204.81,204.74,7.45]
[1756510439546,2.82697098,204.88,204.76,7.45]
[1756510439745,32.23697098,204.88,204.78,2.82697098]
[1756510439953,32.23697098,204.88,204.79,7.45]
[1756510440251,29.41,204.88,204.79,7.45]
[1756510440440,7.29,204.88,204.79,7.45]
[1756510440641,33.59,204.88,204.79,7.45]
[1756510440946,7.29,204.88,204.79,7.45]
[1756510442647,10.11697098,204.88,204.79,7.45]
[1756510444448,92.27,204.88,204.79,2.82697098]
[1756510444652,7.29,204.88,204.8,7.45]
[1756510445757,26.24,204.92,204.83,7.45]
[1756510446053,7.29,204.91,204.83,7.45]
[1756510447556,10.11697098,204.91,204.83,7.45]
[1756510448555,7.89,204.9,204.77,2.82697098]
[1756510448755,2.82697098,204.91,204.78,7.43]
[1756510448756,46.86,204.89,204.78,7.43]
[1756510448957,7.89,204.88,204.78,7.43]
[1756510449152,10.71697098,204.88,204.78,7.43]
[1756510449550,5.47057756,205.04,204.79,15.14]
[1756510449748,13.67294549,205.14,204.97,7.43]
[1756510449749,5.47057756,205.14,204.97,7.43]
[1756510449950,0.84917401,205.09,204.97,7.43]
[1756510450156,2.82697098,205.08,204.97,7.43]
[1756510451154,0.84917401,205.09,204.97,7.43]
[1756510451554,8.73917401,205.09,204.97,7.43]
[1756510451955,8.73917401,205.09,204.98,2.82697098]
[1756510452149,8.73917401,205.09,204.97,7.43]
[1756510452354,8.73917401,205.09,204.98,2.82697098]
[1756510454747,8.73917401,205.09,204.97,7.43]
[1756510454951,7.89,205.08,204.97,10.25697098]
[1756510456953,7.89,205.08,204.98,7.43]
[1756510466266,7.89,205.08,205.0,2.82697098]
[1756510466464,7.89,205.08,205.01,7.43]
[1756510473472,10.71697098,205.08,204.97,7.43]
[1756510475674,2.82697098,205.05,204.97,7.43]
[1756510475864,7.89,205.04,204.97,7.43]
[1756510481183,7.56,205.08,204.99,7.78]
[1756510486989,10.38697098,205.08,204.99,7.78]
[1756510500604,7.56,205.08,204.99,7.78]
[1756510502706,10.38697098,205.08,204.99,7.78]
[1756510503708,7.56,205.04,204.96,7.78]
[1756510503904,2.82697098,205.02,204.96,7.78]
[1756510504104,10.38697098,205.02,204.96,7.78]
[1756510507313,7.56,205.02,204.96,7.78]
[1756510508308,7.27,205.07,204.96,7.78]
[1756510508612,0.03644712,205.01,204.98,7.31]
[1756510510515,0.03644712,205.01,204.97,8.25561212]
[1756510510715,0.03644712,205.01,204.98,7.31]
[1756510511617,0.84917401,205.09,205.0,2.82697098]
[1756510511818,7.27,205.11,205.01,7.31]
[1756510512212,7.27,205.09,205.01,7.31]
[1756510512409,0.8488633,205.12,205.02,2.82697098]
[1756510512710,0.8488633,205.12,205.05,2.82697098]
[1756510512914,0.8488633,205.12,205.06,7.31]
[1756510527830,0.8488633,205.12,205.05,0.03599642]
[1756510527831,7.27,205.1,205.05,0.03599642]
[1756510528032,7.27,205.1,205.06,7.31]
[1756510529032,2.82697098,205.11,205.06,7.31]
[1756510529331,7.27,205.1,205.06,7.31]
[1756510529530,2.82697098,205.11,205.06,7.31]
[1756510529736,7.27,205.1,205.06,7.31]
[1756510529931,2.82697098,205.11,205.06,7.31]
[1756510530435,7.27,205.1,205.06,7.31]
[1756510531028,0.8488633,205.12,205.06,7.31]
[1756510531233,2.82697098,205.1,205.05,0.03599642]
[1756510531533,10.09697098,205.1,205.06,7.31]
[1756510531827,7.27,205.09,205.06,7.31]
[1756510533029,2.82697098,205.07,205.05,0.03599642]
[1756510533336,10.09697098,205.07,205.05,0.03599642]
[1756510533535,8.1188633,205.12,205.06,7.31]
[1756510533836,38.78,205.13,205.06,7.31]
[1756510534529,38.78,205.13,205.07,0.03574824]
[1756510534735,38.78,205.13,205.08,7.31]
[1756510535131,38.78,205.13,205.07,0.03574824]
[1756510536137,38.78,205.13,205.08,7.31]
[1756510536327,38.78,205.13,205.07,0.03574824]
[1756510537432,38.78,205.13,205.08,7.51]
[1756510537638,38.78,205.13,205.07,0.03574824]
[1756510537834,38.78,205.13,205.08,7.51]
[1756510538038,38.78,205.13,205.07,0.03574824]
[1756510538335,38.78,205.13,205.08,7.51]
[1756510538546,38.78,205.13,205.07,0.03574824]
[1756510538734,7.39,205.14,205.08,7.51]
[1756510541242,7.39,205.1,205.07,0.03574824]
[1756510541536,2.82697098,205.11,205.07,0.03574824]
[1756510541737,7.39,205.1,205.07,0.03574824]
[1756510542437,2.82697098,205.08,205.07,0.03574824]
[1756510542737,10.21697098,205.08,205.07,0.03574824]
[1756510545841,10.21697098,205.08,205.0,11.50052082]
[1756510545842,3.30697098,205.08,205.0,11.50052082]
[1756510546042,2.82697098,205.04,205.0,7.51]
[1756510546343,7.39,205.03,205.0,7.51]
[1756510546537,2.82697098,205.04,205.0,7.51]
[1756510546843,7.39,205.03,205.0,7.51]
[1756510547042,7.39,205.03,204.97,11.50052082]
[1756510547439,7.39,205.03,204.97,7.51]
[1756510550246,7.39,205.03,204.97,11.50052082]
[1756510550747,7.39,205.03,204.97,7.51]
[1756510552942,7.39,205.03,204.95,3.99052082]
[1756510553143,7.39,205.03,204.94,3.99052082]
[1756510554350,2.82697098,205.04,204.93,11.50052082]
[1756510554953,7.39,205.03,204.93,11.50052082]
[1756510555144,2.82697098,205.04,204.93,11.50052082]
[1756510555653,7.39,205.03,204.93,11.50052082]
[1756510555953,2.82697098,205.04,204.93,11.50052082]
[1756510556157,7.39,205.0,204.93,11.50052082]
[1756510556754,7.39,205.0,204.93,7.51]
[1756510564965,2.82697098,204.96,204.84,11.50052082]
[1756510565164,10.21697098,204.92,204.84,7.51]
[1756510565363,15.50697098,205.0,204.87,2.82697098]
[1756510565563,20.07,205.0,204.91,7.51]
[1756510567867,7.23,204.98,204.91,7.51]
[1756510568068,7.23,205.01,204.91,7.51]
[1756510568562,7.23,205.01,204.89,2.82697098]
[1756510568563,7.23,204.95,204.87,7.43]
[1756510568766,7.23,204.92,204.81,7.43]
[1756510568968,7.23,204.89,204.81,7.43]
[1756510570467,2.82697098,204.87,204.81,7.43]
[1756510570774,2.82697098,204.84,204.76,7.43]
[1756510570969,7.23,204.83,204.76,7.43]
[1756510573175,2.82697098,204.81,204.68,2.82697098]
[1756510573370,2.82697098,204.81,204.58,10.9574402]
[1756510573371,10.05697098,204.78,204.69,7.43]
[1756510574477,2.82697098,204.75,204.69,7.43]
[1756510575370,10.05697098,204.75,204.69,7.43]
[1756510576471,7.23,204.75,204.69,7.43]
[1756510579578,21.32,204.8,204.69,7.43]
[1756510579579,7.23,204.79,204.69,7.43]
[1756510579881,2.82697098,204.78,204.69,7.43]
[1756510580679,7.23,204.77,204.69,7.43]
[1756510581575,2.82697098,204.76,204.69,7.43]
[1756510583776,10.05697098,204.73,204.69,7.43]
[1756510583972,10.05697098,204.73,204.63,327.84]
[1756510584175,10.05697098,204.73,204.64,7.43]
[1756510584372,2.82697098,204.73,204.64,7.43]
[1756510585275,7.23,204.89,204.67,7.43]
[1756510585476,10.05697098,204.79,204.67,7.43]
[1756510586674,7.23,204.79,204.67,7.43]
[1756510586875,2.82697098,204.78,204.67,7.43]
[1756510589887,7.23,204.77,204.67,7.43]
[1756510594884,7.23,204.82,204.72,2.82697098]
[1756510595090,10.05697098,204.82,204.73,7.43]
[1756510595482,7.23,204.94,204.75,2.82697098]
[1756510595688,10.05697098,204.85,204.76,7.43]
[1756510599690,2.82697098,204.89,204.78,7.24]
[1756510599885,7.57,204.88,204.78,7.24]
[1756510600284,2.82697098,204.94,204.83,2.82697098]
[1756510600484,7.57,204.9,204.78,2.82697098]
[1756510600692,7.57,204.9,204.79,7.24]
[1756510601492,7.57,204.9,204.81,7.24]
[1756510604188,7.57,204.9,204.84,7.24]
[1756510605285,10.39697098,204.95,204.84,7.24]
[1756510606195,7.57,204.91,204.8,7.24]
[1756510606396,2.82697098,204.89,204.8,7.24]
[1756510607393,10.39697098,204.89,204.8,7.24]
[1756510615199,7.57,204.89,204.8,7.24]
[1756510615995,2.82697098,205.0,204.82,7.24]
[1756510615996,2.82697098,204.93,204.82,7.24]
[1756510616301,7.57,204.92,204.82,7.24]
[1756510617002,7.57,204.92,204.84,2.82697098]
[1756510617200,7.57,204.92,204.85,7.24]
[1756510617396,327.84,204.96,204.87,2.82697098]
[1756510617601,335.41,204.96,204.88,7.24]
[1756510619607,7.57,204.96,204.88,7.24]
[1756510620900,2.82697098,204.95,204.82,7.24]
[1756510621104,7.57,204.94,204.84,7.24]
[1756510622802,7.57,204.94,204.84,10.06697098]
[1756510624004,7.57,204.91,204.8,7.24]
[1756510624707,7.57,204.91,204.8,10.06697098]
[1756510625102,2.82697098,204.92,204.8,10.06697098]
[1756510626002,7.57,204.91,204.8,10.06697098]
[1756510626405,2.82697098,204.92,204.8,10.06697098]
[1756510626605,7.57,204.91,204.8,10.06697098]
[1756510626803,2.82697098,204.89,204.8,7.24]
[1756510627009,7.67,204.85,204.77,335.31]
[1756510628103,7.67,204.85,204.78,7.33]
[1756510642816,2.82697098,204.84,204.75,92.9139248]
[1756510643017,7.67,204.8,204.75,80.15528366]
[1756510643419,2.82697098,204.81,204.75,80.15528366]
[1756510644218,7.67,204.8,204.75,80.15528366]
[1756510644519,2.82697098,204.81,204.75,80.15528366]
[1756510645218,7.67,204.8,204.75,80.15528366]
[1756510645423,2.82697098,204.81,204.75,80.15528366]
[1756510645615,7.67,204.8,204.75,80.15528366]
[1756510646221,2.82697098,204.81,204.75,80.15528366]
[1756510646421,7.67,204.8,204.75,80.15528366]
[1756510646621,2.82697098,204.81,204.75,80.15528366]
[1756510646821,7.67,204.8,204.75,80.15528366]
[1756510648026,2.82697098,204.81,204.75,80.15528366]
[1756510648228,7.67,204.8,204.75,80.15528366]
[1756510648428,2.82697098,204.81,204.75,80.15528366]
[1756510648728,7.67,204.8,204.75,80.15528366]
[1756510649027,10.49697098,204.81,204.75,80.15528366]
[1756510649629,2.82697098,204.87,204.77,7.33]
[1756510649925,7.67,204.88,204.77,7.33]
[1756510649926,7.67,204.88,204.78,7.33]
[1756510650227,7.67,204.88,204.81,7.33]
[1756510651026,7.67,204.92,204.81,7.33]
[1756510651324,7.67,204.9,204.81,7.33]
[1756510653320,34.1,204.96,204.77,7.33]
[1756510653321,7.67,204.84,204.77,7.33]
[1756510655231,10.49697098,204.84,204.77,7.33]
[1756510655632,0.0360224,204.83,204.77,7.33]
[1756510658835,0.0360224,204.83,204.79,7.69]
[1756510661238,0.0360224,204.83,204.78,8.25561212]
[1756510661736,0.0360224,204.83,204.79,7.69]
[1756510661937,0.0360224,204.83,204.78,8.25561212]
[1756510662635,0.0360224,204.83,204.79,7.69]
[1756510662836,0.0360224,204.83,204.78,7.69]
[1756510664334,0.0360224,204.83,204.78,13.11864114]
[1756510664534,0.0360224,204.83,204.78,5.42864114]
[1756510665039,0.0360224,204.83,204.79,7.69]
[1756510665538,0.0360224,204.83,204.78,5.42864114]
[1756510665739,0.0360224,204.83,204.79,7.69]
[1756510666437,0.0360224,204.83,204.78,5.42864114]
[1756510666633,0.0360224,204.83,204.79,7.69]
[1756510666838,0.0360224,204.83,204.78,5.42864114]
[1756510667234,0.0360224,204.83,204.79,5.42864114]
[1756510667440,0.0360224,204.83,204.8,7.69]
[1756510667836,0.0360224,204.83,204.79,5.42864114]
[1756510668243,0.0360224,204.83,204.8,5.42864114]
[1756510668943,0.0360224,204.83,204.81,7.69]
[1756510669536,0.0360224,204.83,204.8,5.42864114]
[1756510669738,0.0360224,204.83,204.81,7.69]
[1756510670141,0.0360224,204.83,204.8,5.42864114]
[1756510670545,0.0360224,204.83,204.81,7.69]
[1756510670740,0.0360224,204.83,204.8,5.42864114]
[1756510671045,0.0360224,204.83,204.81,7.69]
[1756510672048,0.0360224,204.83,204.8,5.42864114]
[1756510672246,0.0360224,204.83,204.81,7.69]
[1756510672447,0.0360224,204.83,204.8,5.42864114]
[1756510672742,0.0360224,204.83,204.81,7.69]
[1756510672948,0.0360224,204.83,204.8,5.42864114]
[1756510673142,0.0360224,204.83,204.81,7.69]
[1756510673345,0.0360224,204.83,204.8,5.42864114]
[1756510673745,0.0360224,204.83,204.81,7.69]
[1756510674548,0.0360224,204.83,204.8,5.42864114]
[1756510674742,0.0360224,204.83,204.81,7.69]